bitfinex-derivatives/quotes_BTCF0:USTF0_20250711
["timestamp","ask_amount","ask_price","bid_price","bid_amount"]
[1752217205387,1.64047779,117720.0,117710.0,0.1728513]
[1752217205583,1.64047779,117720.0,117710.0,0.003]
[1752217205985,1.64047779,117720.0,117710.0,0.1728513]
[1752217206292,1.64047779,117720.0,117710.0,0.003]
[1752217207687,1.64047779,117720.0,117710.0,0.02627116]
[1752217207987,1.64047779,117720.0,117710.0,0.003]
[1752217209587,1.64043779,117720.0,117710.0,0.07531984]
[1752217209889,1.59491655,117720.0,117710.0,0.07531984]
[1752217211088,1.59491655,117720.0,117710.0,0.02622984]
[1752217212992,1.59487655,117720.0,117710.0,0.02622984]
[1752217213879,0.65459691,117720.0,117710.0,0.24517114]
[1752217214084,0.65459691,117720.0,117710.0,0.27617021]
[1752217214284,1.26127691,117720.0,117710.0,0.27617021]
[1752217214486,1.3068086,117720.0,117710.0,0.27617021]
[1752217214687,1.3068086,117720.0,117710.0,0.10631891]
[1752217214888,1.64036824,117720.0,117710.0,0.27617021]
[1752217215281,1.59483655,117720.0,117710.0,0.27617021]
[1752217215684,1.26127691,117720.0,117710.0,0.27617021]
[1752217215890,1.59483655,117720.0,117710.0,0.27617021]
[1752217217092,1.26127691,117720.0,117710.0,0.27617021]
[1752217217792,0.65459691,117720.0,117710.0,0.27617021]
[1752217217994,1.59483655,117720.0,117710.0,0.27617021]
[1752217219393,0.4400917,117720.0,117710.0,0.58654094]
[1752217219593,0.39456001,117720.0,117710.0,0.64214506]
[1752217220086,0.39456001,117720.0,117710.0,0.30858542]
[1752217221484,0.39456001,117720.0,117710.0,0.91518542]
[1752217222596,0.39460001,117720.0,117710.0,0.91518542]
[1752217222997,0.39460001,117720.0,117710.0,1.24874506]
[1752217223191,0.56443691,117720.0,117710.0,1.24874506]
[1752217223387,0.56443691,117720.0,117710.0,0.91518542]
[1752217223787,0.4108341,117720.0,117710.0,0.91518542]
[1752217224393,0.580671,117720.0,117710.0,0.91518542]
[1752217224698,0.580671,117720.0,117710.0,1.24874506]
[1752217225792,0.4108341,117720.0,117710.0,0.30858542]
[1752217226090,0.4108341,117720.0,117710.0,0.91506542]
[1752217226091,0.5806709,117720.0,117710.0,0.91506542]
[1752217226797,0.5806709,117720.0,117710.0,1.24862506]
[1752217227388,0.4108341,117720.0,117710.0,1.24862506]
[1752217227592,0.5806709,117720.0,117710.0,1.24862506]
[1752217227794,0.5483909,117720.0,117710.0,1.24862506]
[1752217227994,0.00152001,117720.0,117710.0,1.24862506]
[1752217228194,0.00104,117720.0,117710.0,1.24862506]
[1752217229196,0.00104,117720.0,117710.0,0.91506542]
[1752217229394,0.00104,117720.0,117710.0,1.24862506]
[1752217229594,0.00104,117720.0,117710.0,1.27152999]
[1752217230592,0.00104,117720.0,117710.0,1.24862506]
[1752217230792,0.00104,117720.0,117710.0,1.44143399]
[1752217231388,0.00104,117720.0,117710.0,1.94143399]
[1752217233091,0.00104,117720.0,117710.0,1.60819435]
[1752217233291,0.00104,117720.0,117710.0,0.80906542]
[1752217233292,0.36184,117720.0,117710.0,0.80906542]
[1752217233494,0.89785654,117720.0,117710.0,0.77666542]
[1752217233699,0.98885654,117720.0,117710.0,0.77666542]
[1752217233902,0.98885654,117720.0,117710.0,0.27666542]
[1752217234101,0.98885654,117720.0,117710.0,0.27618542]
[1752217234497,0.98885654,117720.0,117710.0,0.10633412]
[1752217234800,0.98885654,117720.0,117710.0,0.27618542]
[1752217235799,0.81901964,117720.0,117710.0,0.27618542]
[1752217235999,0.48546,117720.0,117710.0,0.27618542]
[1752217236401,0.6552968,117720.0,117710.0,0.27618542]
[1752217237504,0.98885644,117720.0,117710.0,0.27618542]
[1752217239105,0.98885644,117720.0,117710.0,0.10633412]
[1752217239301,0.98885644,117720.0,117710.0,0.07529412]
[1752217239603,0.2265058,117700.0,117690.0,0.3337399]
[1752217239912,1.29749408,117700.0,117690.0,0.35709146]
[1752217240110,1.36099408,117700.0,117690.0,0.10228156]
[1752217240508,1.36099408,117700.0,117690.0,0.27216166]
[1752217241012,1.36099408,117700.0,117690.0,0.10228156]
[1752217241411,1.36099408,117700.0,117690.0,0.07219156]
[1752217242913,1.36199408,117700.0,117690.0,0.07319156]
[1752217243209,1.36251409,117700.0,117690.0,0.07319156]
[1752217243913,1.36251409,117700.0,117690.0,0.001]
[1752217244117,1.36251409,117700.0,117690.0,0.02429376]
[1752217244411,1.36251409,117700.0,117690.0,0.02729376]
[1752217245009,1.36251409,117700.0,117690.0,0.02429376]
[1752217245207,1.36551409,117700.0,117690.0,0.02429376]
[1752217245606,1.36551409,117700.0,117690.0,0.02329376]
[1752217245809,0.2014001,117690.0,117680.0,0.04727945]
[1752217246010,1.58937974,117690.0,117680.0,0.07056497]
[1752217246211,1.58985975,117690.0,117680.0,0.07056497]
[1752217246716,1.58985975,117690.0,117680.0,0.10296497]
[1752217247415,1.58985975,117690.0,117680.0,0.27285957]
[1752217247820,1.59085975,117690.0,117680.0,0.27385957]
[1752217248019,1.59185975,117690.0,117680.0,0.27385957]
[1752217248314,1.59185975,117690.0,117680.0,0.10396497]
[1752217248510,1.59185975,117690.0,117680.0,0.27385957]
[1752217248904,1.59185975,117690.0,117680.0,0.10396497]
[1752217250512,1.25830011,117690.0,117680.0,0.10396497]
[1752217250713,1.59185975,117690.0,117680.0,0.10396497]
[1752217251812,1.59185975,117690.0,117680.0,0.07156497]
[1752217252121,1.59185975,117690.0,117680.0,0.02594247]
[1752217252510,1.59185975,117690.0,117680.0,0.00269945]
[1752217253009,0.223229,117670.0,117660.0,0.33728474]
[1752217253212,2.50653063,117670.0,117660.0,0.15820065]
[1752217253412,2.56833063,117670.0,117660.0,0.06881931]
[1752217253606,2.56833063,117670.0,117660.0,0.02323931]
[1752217253911,2.58918854,117670.0,117660.0,0.06881931]
[1752217254113,2.23477099,117670.0,117660.0,0.06881931]
[1752217254512,2.23577099,117670.0,117660.0,0.06981931]
[1752217254714,2.23577099,117670.0,117660.0,0.07181931]
[1752217255111,2.56933063,117670.0,117660.0,0.07181931]
[1752217256513,1.62973099,117670.0,117660.0,0.10421931]
[1752217256708,0.80126199,117670.0,117660.0,0.60770235]
[1752217256916,0.94017099,117670.0,117660.0,0.29704764]
[1752217257106,0.94017099,117670.0,117660.0,0.69170728]
[1752217257307,0.77026199,117670.0,117660.0,0.35814764]
[1752217257508,0.77026199,117670.0,117660.0,0.69170728]
[1752217257711,0.01714199,117670.0,117660.0,1.29770728]
[1752217257916,0.01714199,117670.0,117660.0,1.32823095]
[1752217258113,0.01614199,117670.0,117660.0,1.32575095]
[1752217258418,0.01714199,117670.0,117660.0,1.83362202]
[1752217259413,0.01714199,117670.0,117660.0,1.47282202]
[1752217259807,0.18705099,117670.0,117660.0,1.47282202]
[1752217260213,0.01714199,117670.0,117660.0,1.47282202]
[1752217261016,0.001,117670.0,117660.0,1.83362202]
[1752217261218,0.3608,117680.0,117670.0,0.26564469]
[1752217261421,0.3608,117680.0,117670.0,0.70871986]
[1752217261723,0.36132001,117680.0,117670.0,0.70919986]
[1752217262018,0.53121451,117680.0,117670.0,0.70919986]
[1752217262725,0.53121451,117680.0,117670.0,0.68632364]
[1752217262920,0.36132001,117680.0,117670.0,0.68532364]
[1752217263120,0.53121451,117680.0,117670.0,0.68532364]
[1752217263522,0.36132001,117680.0,117670.0,0.68532364]
[1752217264021,0.89629415,117680.0,117670.0,0.957644]
[1752217264224,0.95029415,117680.0,117670.0,0.957644]
[1752217264425,0.59397451,117680.0,117670.0,0.957644]
[1752217264625,0.59597451,117680.0,117670.0,0.959644]
[1752217264818,0.6119748,117680.0,117670.0,0.353764]
[1752217265025,0.96833444,117680.0,117670.0,0.727335]
[1752217265224,1.00143444,117680.0,117670.0,0.70409569]
[1752217265425,1.00143444,117680.0,117670.0,0.87400469]
[1752217266425,1.00143444,117680.0,117670.0,0.09821569]
[1752217266727,1.00143444,117680.0,117670.0,0.09773569]
[1752217266929,1.00143444,117680.0,117670.0,0.26764469]
[1752217267127,1.00143444,117680.0,117670.0,0.29108753]
[1752217267326,1.00143444,117680.0,117670.0,0.29108435]
[1752217267526,1.00143444,117680.0,117670.0,0.26764469]
[1752217267727,0.83153994,117680.0,117670.0,0.26764469]
[1752217268031,1.00143454,117680.0,117670.0,0.29108477]
[1752217269127,0.4751803,117680.0,117670.0,0.29108477]
[1752217269729,0.4751803,117680.0,117670.0,0.35168477]
[1752217269925,0.4979803,117680.0,117670.0,0.32128477]
[1752217270227,0.83153994,117680.0,117670.0,0.32128477]
[1752217270429,1.00143454,117680.0,117670.0,0.32128477]
[1752217270629,1.00143454,117680.0,117670.0,0.29108477]
[1752217271425,1.00143454,117680.0,117670.0,0.26764469]
[1752217271630,1.00143454,117680.0,117670.0,0.29105821]
[1752217272727,0.97863454,117680.0,117670.0,0.26764469]
[1752217272929,0.97863454,117680.0,117670.0,0.2910581]
[1752217273226,0.97863394,117680.0,117670.0,0.2910581]
[1752217273830,0.97863394,117680.0,117670.0,0.3223581]
[1752217274132,0.97863394,117680.0,117670.0,0.3541581]
[1752217274326,0.6450743,117680.0,117670.0,0.3541581]
[1752217274529,0.4751803,117680.0,117670.0,0.3541581]
[1752217275129,0.4420803,117680.0,117670.0,0.3541581]
[1752217275331,0.6119743,117680.0,117670.0,0.3541581]
[1752217275531,0.6119743,117680.0,117670.0,0.2910581]
[1752217275729,0.6441743,117680.0,117670.0,0.2910581]
[1752217275932,0.6441743,117680.0,117670.0,0.8968581]
[1752217276137,0.4108803,117680.0,117670.0,0.8968581]
[1752217276432,0.4108803,117680.0,117670.0,0.9599581]
[1752217278728,0.3793603,117680.0,117670.0,0.9599581]
[1752217279527,0.36336001,117680.0,117670.0,0.9599581]
[1752217280734,0.53325401,117680.0,117670.0,0.9599581]
[1752217281136,0.53325401,117680.0,117670.0,0.9828552]
[1752217281435,1.27264734,117680.0,117670.0,0.10339341]
[1752217281635,1.33394734,117680.0,117670.0,0.04758]
[1752217282032,0.1699228,117660.0,117650.0,0.0685971]
[1752217282232,1.28111244,117660.0,117650.0,0.29316321]
[1752217282533,1.34241244,117660.0,117650.0,0.10032881]
[1752217282738,1.34241244,117660.0,117650.0,0.12322591]
[1752217282938,1.34241244,117660.0,117650.0,0.29316321]
[1752217283133,1.34289245,117660.0,117650.0,0.12322591]
[1752217283535,1.34289245,117660.0,117650.0,0.10032881]
[1752217284033,1.35883958,117660.0,117650.0,0.10032881]
[1752217284340,1.35883958,117660.0,117650.0,0.27026611]
[1752217284638,1.35883958,117660.0,117650.0,0.10032881]
[1752217284839,1.35983958,117660.0,117650.0,0.10032881]
[1752217285840,1.96555958,117660.0,117650.0,0.02342881]
[1752217286940,1.96555958,117660.0,117650.0,0.06912881]
[1752217287332,1.96555958,117660.0,117650.0,0.02342881]
[1752217290141,0.2031673,117650.0,117640.0,0.24855173]
[1752217290341,0.6490673,117650.0,117640.0,0.24855173]
[1752217291441,0.6490673,117650.0,117640.0,0.25055173]
[1752217291836,0.6500673,117650.0,117640.0,0.25055173]
[1752217293141,0.6505073,117650.0,117640.0,0.25055173]
[1752217293441,0.6505473,117650.0,117640.0,0.25055173]
[1752217294247,0.6505473,117650.0,117640.0,0.27362525]
[1752217295444,0.48061,117650.0,117640.0,0.27362525]
[1752217295645,0.48061,117650.0,117640.0,0.33392525]
[1752217295842,0.39551,117650.0,117640.0,0.64489137]
[1752217296043,0.00148,117650.0,117640.0,1.77719415]
[1752217296241,0.00104,117650.0,117640.0,1.77719415]
[1752217297737,0.00104,117650.0,117640.0,2.27719415]
[1752217299449,0.00104,117650.0,117640.0,2.30009125]
[1752217299750,0.01594713,117660.0,117650.0,0.2011373]
[1752217299946,0.01594713,117660.0,117650.0,0.68794704]
[1752217301348,0.01694713,117660.0,117650.0,0.68794704]
[1752217303453,0.01694713,117660.0,117650.0,0.68842704]
[1752217303656,0.01698713,117660.0,117650.0,0.68842704]
[1752217305654,0.40084,117680.0,117670.0,0.1699084]
[1752217305952,0.6039539,117680.0,117670.0,0.89689518]
[1752217306157,0.6678539,117680.0,117670.0,0.89737518]
[1752217306355,0.68416892,117680.0,117670.0,0.89737518]
[1752217306651,0.51427502,117680.0,117670.0,0.91537142]
[1752217306856,0.49796,117680.0,117670.0,1.24893106]
[1752217307255,0.49996,117680.0,117670.0,1.24893106]
[1752217307756,0.669854,117680.0,117670.0,0.91537142]
[1752217307958,0.669854,117680.0,117670.0,0.91533142]
[1752217308259,0.692654,117680.0,117670.0,0.91533142]
[1752217308852,0.49996,117680.0,117670.0,0.91533142]
[1752217309447,0.50096,117680.0,117670.0,0.91633142]
[1752217309651,0.50096,117680.0,117670.0,0.31093142]
[1752217309853,0.50096,117680.0,117670.0,0.91581142]
[1752217311155,0.670854,117680.0,117670.0,0.91581142]
[1752217311354,0.693654,117680.0,117670.0,0.91581142]
[1752217311557,0.693654,117680.0,117670.0,0.29245518]
[1752217311759,1.02721364,117680.0,117670.0,0.89777518]
[1752217312657,1.02721364,117680.0,117670.0,0.89773518]
[1752217312850,1.02721364,117680.0,117670.0,0.24345155]
[1752217313049,1.63249364,117680.0,117670.0,0.001]
[1752217313256,1.80245364,117680.0,117670.0,0.001]
[1752217313456,1.80245364,117680.0,117670.0,0.02457964]
[1752217313656,0.2026884,117670.0,117650.0,0.34533462]
[1752217313857,1.24688244,117660.0,117650.0,0.98709639]
[1752217314063,1.32908741,117660.0,117650.0,0.87111139]
[1752217314254,1.32908741,117660.0,117650.0,0.24298444]
[1752217314455,1.15916461,117660.0,117650.0,0.24298444]
[1752217314753,0.85838497,117660.0,117650.0,0.29685139]
[1752217316264,1.02830787,117660.0,117650.0,0.29685139]
[1752217316463,0.85838497,117660.0,117650.0,0.29685139]
[1752217317364,0.85838497,117660.0,117650.0,0.29685809]
[1752217317576,1.02830787,117660.0,117650.0,0.29685809]
[1752217317766,0.85838497,117660.0,117650.0,0.29685809]
[1752217318265,1.22312509,117660.0,117650.0,0.29685809]
[1752217318766,2.43352509,117660.0,117650.0,0.29685809]
[1752217319062,2.06922497,117660.0,117650.0,0.29685809]
[1752217319659,2.06922497,117660.0,117650.0,0.27396441]
[1752217319855,2.06922497,117660.0,117650.0,0.29685809]
[1752217320160,2.23914787,117660.0,117650.0,0.29687069]
[1752217320967,2.60344799,117660.0,117650.0,0.12693339]
[1752217321164,2.60344799,117660.0,117650.0,0.09595339]
[1752217321468,2.60344799,117660.0,117650.0,0.26589069]
[1752217322066,2.23914787,117660.0,117650.0,0.26589069]
[1752217322263,2.60344799,117660.0,117650.0,0.26589069]
[1752217322465,2.60344799,117660.0,117650.0,0.24299701]
[1752217322664,2.60344799,117660.0,117650.0,0.26589069]
[1752217322865,2.60344799,117660.0,117650.0,0.24299701]
[1752217323067,2.60344799,117660.0,117650.0,0.26589069]
[1752217323565,2.60444799,117660.0,117650.0,0.26589069]
[1752217323868,2.60444799,117660.0,117650.0,0.09595339]
[1752217324063,2.60444799,117660.0,117650.0,0.07305971]
[1752217324267,2.24014787,117660.0,117650.0,0.24299691]
[1752217324569,2.60444799,117660.0,117650.0,0.27585553]
[1752217325362,2.24014787,117660.0,117650.0,0.27585553]
[1752217325566,2.60444799,117660.0,117650.0,0.27585553]
[1752217326167,2.60444799,117660.0,117650.0,0.09595339]
[1752217326367,2.60444799,117660.0,117650.0,0.26589069]
[1752217326570,2.60444799,117660.0,117650.0,0.09595339]
[1752217327366,2.24014787,117660.0,117650.0,0.09595339]
[1752217327571,2.60444799,117660.0,117650.0,0.26589069]
[1752217327771,2.60444799,117660.0,117650.0,0.09595339]
[1752217328473,2.60444799,117660.0,117650.0,0.02357971]
[1752217329374,2.60444799,117660.0,117650.0,0.04647339]
[1752217331275,2.60444799,117660.0,117650.0,0.07305971]
[1752217331663,2.60444799,117660.0,117650.0,0.02357971]
[1752217332070,0.2245172,117650.0,117640.0,0.07407371]
[1752217332374,0.6488172,117650.0,117640.0,0.00279371]
[1752217332579,1.01311732,117650.0,117640.0,0.00279371]
[1752217333074,1.01355732,117650.0,117640.0,0.00279371]
[1752217333974,1.08455224,117650.0,117640.0,0.00279371]
[1752217334376,1.08555224,117650.0,117640.0,0.00479371]
[1752217334777,1.08555224,117650.0,117640.0,0.05037371]
[1752217334978,1.08655224,117650.0,117640.0,0.04837371]
[1752217335273,0.72225212,117650.0,117640.0,0.04837371]
[1752217335478,0.72225212,117650.0,117640.0,0.24930551]
[1752217336376,0.72225212,117650.0,117640.0,0.07935371]
[1752217336583,1.08655224,117650.0,117640.0,0.07935371]
[1752217336781,1.08655224,117650.0,117640.0,0.24930551]
[1752217336981,1.08655224,117650.0,117640.0,0.08931896]
[1752217337169,1.08655224,117650.0,117640.0,0.25927076]
[1752217337370,1.08655224,117650.0,117640.0,0.24930551]
[1752217338377,1.08655224,117650.0,117640.0,0.25927075]
[1752217338981,0.70045212,117650.0,117640.0,0.62357087]
[1752217339278,0.70045212,117650.0,117640.0,0.68637087]
[1752217339484,0.70045212,117650.0,117640.0,0.32207075]
[1752217339679,1.06475224,117650.0,117640.0,0.32207075]
[1752217339881,0.46152,117650.0,117640.0,0.67640563]
[1752217340083,1.2061972,117650.0,117640.0,0.67640563]
[1752217340281,1.2061972,117650.0,117640.0,0.31210551]
[1752217340886,1.2061972,117650.0,117640.0,0.32207042]
[1752217341686,1.2380972,117650.0,117640.0,0.32207042]
[1752217342087,1.2380972,117650.0,117640.0,0.32207032]
[1752217342786,1.60239732,117650.0,117640.0,0.25647661]
[1752217343382,1.60239732,117650.0,117640.0,0.08652491]
[1752217343581,1.60239732,117650.0,117640.0,0.25647661]
[1752217345890,0.99715732,117650.0,117640.0,0.25647661]
[1752217346085,1.60223732,117650.0,117640.0,0.25647661]
[1752217346291,1.60223732,117650.0,117640.0,0.25647675]
[1752217348304,1.60223732,117650.0,117640.0,0.2465117]
[1752217348499,0.99715732,117650.0,117640.0,0.2465117]
[1752217348705,1.2379372,117650.0,117640.0,0.61081182]
[1752217348905,1.2379372,117650.0,117640.0,0.64091182]
[1752217349098,1.2379372,117650.0,117640.0,0.2766117]
[1752217349505,0.6328573,117650.0,117640.0,0.30711339]
[1752217349705,0.6009573,117650.0,117640.0,0.34001339]
[1752217352099,0.6009573,117650.0,117640.0,0.17006169]
[1752217352294,0.6009573,117650.0,117640.0,0.34001339]
[1752217353603,1.2059973,117650.0,117640.0,0.34001339]
[1752217354806,1.2378973,117650.0,117640.0,0.34001339]
[1752217356106,1.60219742,117650.0,117640.0,0.07608169]
[1752217356300,1.60219742,117650.0,117640.0,0.04558]
[1752217359004,1.2378973,117650.0,117640.0,0.04558]
[1752217359205,0.6328573,117650.0,117640.0,0.2470617]
[1752217359404,1.2378573,117650.0,117640.0,0.07711]
[1752217359911,1.2378573,117650.0,117640.0,0.2470617]
[1752217360704,0.6328573,117650.0,117640.0,0.64186351]
[1752217360905,1.2378573,117650.0,117640.0,0.64186351]
[1752217361110,1.2378573,117650.0,117640.0,0.33996339]
[1752217361307,1.2378573,117650.0,117640.0,0.3094617]
[1752217361510,1.2378573,117650.0,117640.0,0.33996339]
[1752217361918,0.6328573,117650.0,117640.0,0.33996339]
[1752217362106,0.46292,117650.0,117640.0,1.54992339]
[1752217362310,0.39802,117650.0,117640.0,1.91422351]
[1752217362510,0.3648,117650.0,117640.0,2.32430355]
[1752217362808,0.3648,117650.0,117640.0,2.29380186]
[1752217363015,0.3648,117650.0,117640.0,2.71428185]
[1752217363610,0.004,117650.0,117640.0,2.71428185]
[1752217363908,0.004,117650.0,117640.0,3.07508185]
[1752217364313,0.004,117650.0,117640.0,3.05987454]
[1752217364812,0.004,117650.0,117640.0,3.55987454]
[1752217365110,0.004,117650.0,117640.0,2.8312743]
[1752217365317,0.004,117650.0,117640.0,3.30987454]
[1752217365513,0.004,117650.0,117640.0,2.94907454]
[1752217365712,0.004,117650.0,117640.0,3.30987454]
[1752217368522,0.004,117650.0,117640.0,2.5812743]
[1752217368719,0.004,117650.0,117640.0,3.30987454]
[1752217369823,0.004,117650.0,117640.0,1.37481442]
[1752217370124,0.004,117650.0,117640.0,1.97965442]
[1752217370517,0.004,117650.0,117640.0,1.37481442]
[1752217370717,0.5347373,117650.0,117640.0,0.84051431]
[1752217370918,0.3648,117650.0,117640.0,1.30965443]
[1752217371223,0.5347372,117650.0,117640.0,1.27908182]
[1752217371620,0.5347372,117650.0,117640.0,0.9147417]
[1752217371817,0.5648372,117650.0,117640.0,0.8523417]
[1752217372021,0.5976372,117650.0,117640.0,0.8523417]
[1752217373125,0.5976372,117650.0,117640.0,1.21664182]
[1752217373920,0.5976372,117650.0,117640.0,1.28319657]
[1752217374524,0.5976372,117650.0,117640.0,1.31419657]
[1752217374725,0.5976372,117650.0,117640.0,0.95986118]
[1752217374918,0.4277,117650.0,117640.0,1.3241613]
[1752217375921,0.4267,117650.0,117640.0,0.7520613]
[1752217376125,0.4287,117650.0,117640.0,1.3568613]
[1752217376621,0.3959,117650.0,117640.0,1.3568613]
[1752217376826,0.005,117650.0,117640.0,1.3568613]
[1752217377023,0.005,117650.0,117640.0,1.37746918]
[1752217377220,0.005,117650.0,117640.0,1.92173335]
[1752217377420,0.0179724,117660.0,117650.0,0.2007572]
[1752217377628,0.0179724,117660.0,117650.0,0.67737732]
[1752217377926,0.0179724,117660.0,117650.0,0.67637732]
[1752217378129,0.0179724,117660.0,117650.0,0.67685732]
[1752217378517,0.0179724,117660.0,117650.0,0.68682069]
[1752217378723,0.0209724,117660.0,117650.0,0.68782069]
[1752217379123,0.003,117660.0,117650.0,0.68782069]
[1752217380324,0.001,117660.0,117650.0,0.68782069]
[1752217380524,0.002,117660.0,117650.0,0.68782069]
[1752217382428,0.1719228,117660.0,117650.0,0.68782069]
[1752217382618,0.002,117660.0,117650.0,0.68782069]
[1752217383126,0.55053016,117660.0,117650.0,0.26022057]
[1752217383324,0.98434028,117660.0,117650.0,0.8549772]
[1752217383624,0.45011736,117660.0,117650.0,0.8549772]
[1752217383825,0.62004016,117660.0,117650.0,1.21927732]
[1752217384026,0.45011736,117660.0,117650.0,1.21927732]
[1752217385127,0.62004016,117660.0,117650.0,1.21927732]
[1752217385329,0.45011736,117660.0,117650.0,1.21927732]
[1752217385527,0.45055736,117660.0,117650.0,1.21927732]
[1752217385729,0.44254736,117660.0,117650.0,1.21927732]
[1752217385929,0.39454,117660.0,117650.0,1.21927732]
[1752217386130,0.5946629,117660.0,117650.0,0.8549772]
[1752217386327,0.5946629,117660.0,117650.0,1.21927732]
[1752217386734,0.6026729,117660.0,117650.0,0.8549772]
[1752217387629,0.6026729,117660.0,117650.0,1.21927732]
[1752217387831,0.6026729,117660.0,117650.0,0.8549772]
[1752217388632,0.62068678,117660.0,117650.0,0.8549772]
[1752217390027,0.62068678,117660.0,117650.0,0.8549372]
[1752217390324,0.62068678,117660.0,117650.0,1.21923732]
[1752217390524,0.62068678,117660.0,117650.0,0.8549372]
[1752217390736,0.62068678,117660.0,117650.0,1.21923732]
[1752217390930,0.45076388,117660.0,117650.0,1.21923732]
[1752217391430,0.62068678,117660.0,117650.0,1.21923732]
[1752217392535,0.62068678,117660.0,117650.0,0.8549372]
[1752217392731,0.62068678,117660.0,117650.0,1.21923732]
[1752217392933,0.62068678,117660.0,117650.0,0.8778646]
[1752217393129,0.62068678,117660.0,117650.0,0.8549372]
[1752217394431,0.9899869,117660.0,117650.0,0.8549372]
[1752217394631,0.9899869,117660.0,117650.0,0.2512572]
[1752217394831,0.9899869,117660.0,117650.0,0.87849623]
[1752217395033,0.62568678,117660.0,117650.0,0.87849623]
[1752217395226,0.9899869,117660.0,117650.0,0.87849623]
[1752217395426,0.9900269,117660.0,117650.0,0.27385623]
[1752217395626,0.9900269,117660.0,117650.0,0.87849623]
[1752217396434,0.9900269,117660.0,117650.0,0.70855903]
[1752217396639,0.9900269,117660.0,117650.0,0.27385623]
[1752217397236,0.62572678,117660.0,117650.0,0.27385623]
[1752217397436,0.9900269,117660.0,117650.0,0.27385623]
[1752217398643,0.9900269,117660.0,117650.0,0.10391903]
[1752217398847,0.62572678,117660.0,117650.0,0.27385633]
[1752217399038,0.9900269,117660.0,117650.0,0.10391903]
[1752217399548,0.9900269,117660.0,117650.0,0.08084]
[1752217399843,0.9900269,117660.0,117650.0,0.05002]
[1752217400046,0.9930269,117660.0,117650.0,0.05002]
[1752217400242,0.62872678,117660.0,117650.0,0.05002]
[1752217400745,0.9920269,117660.0,117650.0,0.05002]
[1752217401342,0.9930269,117660.0,117650.0,0.05002]
[1752217401642,0.62872678,117660.0,117650.0,0.05002]
[1752217401945,1.00954443,117660.0,117650.0,0.05002]
[1752217402843,0.64524431,117660.0,117650.0,0.05002]
[1752217403040,1.00954443,117660.0,117650.0,0.05002]
[1752217403436,0.64524431,117660.0,117650.0,0.05002]
[1752217403747,1.00954443,117660.0,117650.0,0.05002]
[1752217404341,1.00954443,117660.0,117650.0,0.001]
[1752217404538,0.64524431,117660.0,117650.0,0.001]
[1752217404749,0.64524431,117660.0,117650.0,0.04732]
[1752217404942,1.00954443,117660.0,117650.0,0.04732]
[1752217406050,1.00954443,117660.0,117650.0,0.04632]
[1752217406051,1.00754443,117660.0,117650.0,0.04632]
[1752217406253,1.00854443,117660.0,117650.0,0.04732]
[1752217406645,0.64424431,117660.0,117650.0,0.04732]
[1752217406850,1.00854443,117660.0,117650.0,0.04732]
[1752217408455,1.00854443,117660.0,117650.0,0.001]
[1752217411357,1.05407612,117660.0,117650.0,0.001]
[1752217411751,1.00854443,117660.0,117650.0,0.001]
[1752217412355,1.05407612,117660.0,117650.0,0.001]
[1752217412554,1.00854443,117660.0,117650.0,0.001]
[1752217413151,1.05407612,117660.0,117650.0,0.001]
[1752217413451,1.00854443,117660.0,117650.0,0.001]
[1752217413651,1.05391043,117660.0,117650.0,0.001]
[1752217414759,0.68961031,117660.0,117650.0,0.001]
[1752217414946,1.05391043,117660.0,117650.0,0.001]
[1752217416253,1.00854443,117660.0,117650.0,0.001]
[1752217416650,0.64424431,117660.0,117650.0,0.001]
[1752217416853,1.00854443,117660.0,117650.0,0.001]
[1752217418364,1.05391043,117660.0,117650.0,0.001]
[1752217418547,0.68961031,117660.0,117650.0,0.001]
[1752217418753,1.05391043,117660.0,117650.0,0.001]
[1752217418950,1.00854443,117660.0,117650.0,0.001]
[1752217419458,0.64424431,117660.0,117650.0,0.001]
[1752217419656,1.00854443,117660.0,117650.0,0.001]
[1752217419962,1.05391043,117660.0,117650.0,0.001]
[1752217423057,0.1699373,117650.0,117640.0,0.04802003]
[1752217423259,2.17794742,117650.0,117640.0,0.00170003]
[1752217423463,2.22331342,117650.0,117640.0,0.04802003]
[1752217423860,1.8590133,117650.0,117640.0,0.04802003]
[1752217424060,2.22331342,117650.0,117640.0,0.04802003]
[1752217424260,2.17794742,117650.0,117640.0,0.04802003]
[1752217424460,1.8136473,117650.0,117640.0,0.04802003]
[1752217424664,2.17794742,117650.0,117640.0,0.04802003]
[1752217424862,2.17894742,117650.0,117640.0,0.04902003]
[1752217425764,2.17894742,117650.0,117640.0,0.05002003]
[1752217426660,2.22431342,117650.0,117640.0,0.05002003]
[1752217426964,2.17894742,117650.0,117640.0,0.05002003]
[1752217428365,2.22431342,117650.0,117640.0,0.05002003]
[1752217428567,2.17938742,117650.0,117640.0,0.05002003]
[1752217430265,2.17938742,117650.0,117640.0,0.05657605]
[1752217431060,2.17938742,117650.0,117640.0,0.05002003]
[1752217431964,1.8150873,117650.0,117640.0,0.05654482]
[1752217432269,1.8150873,117650.0,117640.0,0.00370003]
[1752217432465,2.17938742,117650.0,117640.0,0.00370003]
[1752217432663,1.8150873,117650.0,117640.0,0.00370003]
[1752217432863,2.17938742,117650.0,117640.0,0.05117003]
[1752217433367,2.17938742,117650.0,117640.0,0.05770174]
[1752217433871,2.17938742,117650.0,117640.0,0.05117003]
[1752217434765,2.17938742,117650.0,117640.0,0.05770172]
[1752217435368,2.17938742,117650.0,117640.0,0.05117003]
[1752217435569,2.17938742,117650.0,117640.0,0.05767244]
[1752217436468,2.17938742,117650.0,117640.0,0.01020244]
[1752217436964,2.17938742,117650.0,117640.0,0.05767244]
[1752217437569,2.17938742,117650.0,117640.0,0.05117003]
[1752217437766,2.22475342,117650.0,117640.0,0.05117003]
[1752217438072,2.22475342,117650.0,117640.0,0.07419935]
[1752217438369,2.17938742,117650.0,117640.0,0.08070124]
[1752217438970,2.17938742,117650.0,117640.0,0.05767192]
[1752217439162,2.17938742,117650.0,117640.0,0.05117003]
[1752217440868,2.22475342,117650.0,117640.0,0.05117003]
[1752217441072,2.17938742,117650.0,117640.0,0.05117003]
[1752217441475,2.22475342,117650.0,117640.0,0.05117003]
[1752217442970,2.22475342,117650.0,117640.0,0.07421784]
[1752217442971,1.61999342,117650.0,117640.0,0.07421784]
[1752217443676,1.57462742,117650.0,117640.0,0.07421784]
[1752217444076,1.61999342,117650.0,117640.0,0.07421784]
[1752217444276,1.57462742,117650.0,117640.0,0.07421784]
[1752217444676,1.61999342,117650.0,117640.0,0.07421784]
[1752217444977,1.66564767,117650.0,117640.0,0.07421784]
[1752217445170,1.62028167,117650.0,117640.0,0.07421784]
[1752217445771,1.66564767,117650.0,117640.0,0.07421784]
[1752217446373,1.01564167,117650.0,117640.0,0.07421784]
[1752217446572,1.62028167,117650.0,117640.0,0.51437221]
[1752217446776,1.55718167,117650.0,117640.0,0.10441784]
[1752217447072,1.55718167,117650.0,117640.0,0.16821784]
[1752217447271,1.61978167,117650.0,117640.0,0.16821784]